[Event "*** Titled Tuesday 3|2 Blitz"]
[Site "Chess.com"]
[Date "2015.08.04"]
[Round "4"]
[White "Lying-Ted"]
[Black "silverback96"]
[Result "1/2-1/2"]
[WhiteElo "2003"]
[BlackElo "1885"]
[TimeControl "180+2"]
[EndTime "12:26:18 PDT"]
[Termination "Game drawn by repetition"]

1. e4 {[%clk 0:03:01.9]} 1... e6 {[%clk 0:02:52.4]} 2. d4 {[%clk 0:03:02.1]}
2... d5 {[%clk 0:02:52.7]} 3. Nd2 {[%clk 0:03:03.1]} 3... Nf6 {[%clk 0:02:50.3]}
4. e5 {[%clk 0:03:03.6]} 4... Nfd7 {[%clk 0:02:50.5]} 5. Bd3 {[%clk 0:03:04.8]}
5... c5 {[%clk 0:02:51]} 6. c3 {[%clk 0:03:06.1]} 6... Nc6 {[%clk 0:02:52.6]} 7.
Ne2 {[%clk 0:03:07.2]} 7... cxd4 {[%clk 0:02:54]} 8. cxd4 {[%clk 0:03:07.8]}
8... f6 {[%clk 0:02:54.4]} 9. exf6 {[%clk 0:03:09]} 9... Nxf6 {[%clk 0:02:55.9]}
10. O-O {[%clk 0:03:10.5]} 10... Bd6 {[%clk 0:02:56.6]} 11. Nf3 {[%clk
0:03:11.8]} 11... O-O {[%clk 0:02:57.6]} 12. Bf4 {[%clk 0:03:13.1]} 12... Bxf4
{[%clk 0:02:57.4]} 13. Nxf4 {[%clk 0:03:13]} 13... Ne4 {[%clk 0:02:59]} 14. Qc1
{[%clk 0:03:14.5]} 14... Ng5 {[%clk 0:02:58.2]} 15. Nxg5 {[%clk 0:03:10.4]}
15... Qxg5 {[%clk 0:02:58.5]} 16. Ne2 {[%clk 0:03:12.3]} 16... Qxc1 {[%clk
0:02:58.1]} 17. Raxc1 {[%clk 0:03:12]} 17... Bd7 {[%clk 0:02:58.1]} 18. Bb5
{[%clk 0:03:09.3]} 18... a6 {[%clk 0:02:59]} 19. Bxc6 {[%clk 0:03:09.8]} 19...
Bxc6 {[%clk 0:02:59.2]} 20. Rfe1 {[%clk 0:03:07.8]} 20... Kf7 {[%clk 0:02:59.4]}
21. Nf4 {[%clk 0:03:06.3]} 21... Rfe8 {[%clk 0:03:00.5]} 22. Nd3 {[%clk
0:03:06.2]} 22... Rac8 {[%clk 0:02:56.9]} 23. Re2 {[%clk 0:02:36.8]} 23... Bb5
{[%clk 0:02:18]} 24. Ne5+ {[%clk 0:02:37.4]} 24... Kf6 {[%clk 0:02:18.6]} 25.
Rec2 {[%clk 0:02:36.9]} 25... Rxc2 {[%clk 0:02:17.9]} 26. Rxc2 {[%clk
0:02:37.1]} 26... Bc6 {[%clk 0:02:16.3]} 27. f3 {[%clk 0:02:28.2]} 27... Re7
{[%clk 0:02:04.6]} 28. Nxc6 {[%clk 0:02:26]} 28... bxc6 {[%clk 0:02:01.4]} 29.
Rxc6 {[%clk 0:02:27.9]} 29... Rb7 {[%clk 0:02:00.5]} 30. b3 {[%clk 0:02:28.1]}
30... a5 {[%clk 0:02:01.3]} 31. Kf2 {[%clk 0:02:21.8]} 31... a4 {[%clk 0:02:01]}
32. Rc3 {[%clk 0:02:22.3]} 32... axb3 {[%clk 0:02:01.3]} 33. axb3 {[%clk
0:02:24.2]} 33... Rb4 {[%clk 0:02:02.3]} 34. Ke3 {[%clk 0:02:25.1]} 34... e5
{[%clk 0:02:03.3]} 35. dxe5+ {[%clk 0:02:24.4]} 35... Kxe5 {[%clk 0:02:04.2]}
36. f4+ {[%clk 0:02:18.1]} 36... Rxf4 {[%clk 0:02:01.5]} 37. Rc8 {[%clk
0:02:19]} 37... Rb4 {[%clk 0:02:01.2]} 38. Re8+ {[%clk 0:02:14.6]} 38... Kd6
{[%clk 0:02:00.3]} 39. Rd8+ {[%clk 0:02:14.2]} 39... Ke6 {[%clk 0:02:01.6]} 40.
Re8+ {[%clk 0:02:14.9]} 40... Kd6 {[%clk 0:02:00.7]} 41. Rd8+ {[%clk 0:02:15.9]}
41... Ke6 {[%clk 0:02:00.7]} 42. Re8+ {[%clk 0:02:16.6]} 42... Kd7 {[%clk
0:02:01.1]} 43. Rg8 {[%clk 0:02:14.6]} 43... Rxb3+ {[%clk 0:01:47.5]} 44. Kd4
{[%clk 0:02:14.1]} 44... Ke6 {[%clk 0:01:48.9]} 45. Rxg7 {[%clk 0:02:13.8]}
45... Rb4+ {[%clk 0:01:50.1]} 46. Kd3 {[%clk 0:02:13.9]} 46... Rh4 {[%clk
0:01:51]} 47. h3 {[%clk 0:02:13.7]} 47... h5 {[%clk 0:01:50.6]} 48. Rg5 {[%clk
0:02:11.7]} 48... Kd6 {[%clk 0:01:50.7]} 49. Kc3 {[%clk 0:01:59.2]} 49... Kc5
{[%clk 0:01:20.2]} 50. Kd3 {[%clk 0:01:59.1]} 50... Ra4 {[%clk 0:01:20.4]} 51.
Rxh5 {[%clk 0:01:59.2]} 51... Ra3+ {[%clk 0:01:22]} 52. Ke2 {[%clk 0:01:56.3]}
52... Ra2+ {[%clk 0:01:22.2]} 53. Kf3 {[%clk 0:01:57.6]} 53... Kc4 {[%clk
0:00:58.8]} 54. g4 {[%clk 0:01:58]} 54... d4 {[%clk 0:00:57]} 55. Rh8 {[%clk
0:01:59.3]} 55... Ra3+ {[%clk 0:00:46.3]} 56. Ke2 {[%clk 0:01:55.1]} 56... Ra2+
{[%clk 0:00:46.8]} 57. Kf3 {[%clk 0:01:55.6]} 57... Ra3+ {[%clk 0:00:48.3]} 58.
Kf4 {[%clk 0:01:56.9]} 58... d3 {[%clk 0:00:48.2]} 59. Rc8+ {[%clk 0:01:54.5]}
59... Kd4 {[%clk 0:00:44]} 60. g5 {[%clk 0:01:53.5]} 60... d2 {[%clk 0:00:43.3]}
61. Rd8+ {[%clk 0:01:53.7]} 61... Kc3 {[%clk 0:00:44.2]} 62. g6 {[%clk
0:01:50.8]} 62... Ra4+ {[%clk 0:00:44.6]} 63. Ke3 {[%clk 0:01:51.9]} 63... Ra6
{[%clk 0:00:38.4]} 64. g7 {[%clk 0:01:20.2]} 64... Rg6 {[%clk 0:00:28.2]} 65.
Rc8+ {[%clk 0:01:09.9]} 65... Kb4 {[%clk 0:00:27.2]} 66. Kxd2 {[%clk 0:01:05.2]}
66... Rxg7 {[%clk 0:00:27.5]} 67. Rh8 {[%clk 0:00:57.8]} 67... Kc5 {[%clk
0:00:26.3]} 68. Ke3 {[%clk 0:00:59.1]} 68... Kd6 {[%clk 0:00:26.5]} 69. Kf4
{[%clk 0:01:00.2]} 69... Ke7 {[%clk 0:00:27]} 70. Rh5 {[%clk 0:00:56.7]} 70...
Kf7 {[%clk 0:00:27.6]} 71. h4 {[%clk 0:00:57.2]} 71... Kg8 {[%clk 0:00:26.9]}
72. Ra5 {[%clk 0:00:52.3]} 72... Kh7 {[%clk 0:00:27.2]} 73. h5 {[%clk
0:00:49.6]} 73... Kh6 {[%clk 0:00:27.9]} 74. Rb5 {[%clk 0:00:42.5]} 74... Rf7+
{[%clk 0:00:23.9]} 75. Kg4 {[%clk 0:00:42.6]} 75... Rg7+ {[%clk 0:00:25.1]} 76.
Kh4 {[%clk 0:00:43.8]} 76... Rc7 {[%clk 0:00:26.5]} 77. Rb6+ {[%clk 0:00:44.5]}
77... Kh7 {[%clk 0:00:17.9]} 78. Kg5 {[%clk 0:00:46.4]} 78... Rc5+ {[%clk
0:00:17]} 79. Kg4 {[%clk 0:00:45.8]} 79... Rc4+ {[%clk 0:00:18.5]} 80. Kg5
{[%clk 0:00:46.8]} 80... Rc5+ {[%clk 0:00:19.4]} 81. Kf6 {[%clk 0:00:43.5]}
81... Rxh5 {[%clk 0:00:18.1]} 82. Rb7+ {[%clk 0:00:44.7]} 82... Kh8 {[%clk
0:00:15.3]} 83. Rb8+ {[%clk 0:00:46.6]} 83... Kh7 {[%clk 0:00:14.9]} 84. Rb7+
{[%clk 0:00:48.5]} 84... Kh6 {[%clk 0:00:13.8]} 85. Rb8 {[%clk 0:00:49.1]} 85...
Kh7 {[%clk 0:00:15.1]} 86. Rb7+ {[%clk 0:00:49.7]} 1/2-1/2

[Event "*** Titled Tuesday 3|2 Blitz"]
[Site "Chess.com"]
[Date "2015.08.04"]
[Round "5"]
[White "CraiggoryC"]
[Black "Hafez_Bakr"]
[Result "1-0"]
[WhiteElo "2006"]
[BlackElo "1770"]
[TimeControl "180+2"]
[EndTime "12:30:27 PDT"]
[Termination "CraiggoryC won by resignation"]

1. e4 {[%clk 0:03:01.9]} 1... c5 {[%clk 0:02:56.5]} 2. Nf3 {[%clk 0:03:02.5]}
2... d6 {[%clk 0:02:58.4]} 3. d4 {[%clk 0:03:04]} 3... cxd4 {[%clk 0:02:59.3]}
4. Nxd4 {[%clk 0:03:05.7]} 4... Nf6 {[%clk 0:03:01]} 5. Nc3 {[%clk 0:03:07.3]}
5... a6 {[%clk 0:03:02.3]} 6. Be3 {[%clk 0:03:08.8]} 6... g6 {[%clk 0:03:02.9]}
7. f3 {[%clk 0:03:07.6]} 7... Bg7 {[%clk 0:03:04.3]} 8. Qd2 {[%clk 0:03:08.1]}
8... O-O {[%clk 0:03:01.6]} 9. O-O-O {[%clk 0:03:01.3]} 9... Nc6 {[%clk
0:03:02.4]} 10. h4 {[%clk 0:02:45.1]} 10... Nxd4 {[%clk 0:03:02]} 11. Bxd4
{[%clk 0:02:43.9]} 11... h5 {[%clk 0:03:03.5]} 12. Bc4 {[%clk 0:02:40.9]} 12...
Kh7 {[%clk 0:03:02.9]} 13. g4 {[%clk 0:02:35.1]} 13... b5 {[%clk 0:02:57.6]} 14.
Bb3 {[%clk 0:02:25.6]} 14... Rb8 {[%clk 0:02:50.7]} 15. Nd5 {[%clk 0:02:20.4]}
15... a5 {[%clk 0:02:41.1]} 16. Nxf6+ {[%clk 0:02:16]} 16... exf6 {[%clk
0:02:41.1]} 17. gxh5 {[%clk 0:02:12.3]} 17... gxh5 {[%clk 0:02:40.3]} 18. Rhg1
{[%clk 0:01:43.2]} 18... a4 {[%clk 0:02:37.7]} 19. Bd5 {[%clk 0:01:43]} 19...
Be6 {[%clk 0:02:37.3]} 20. Rxg7+ {[%clk 0:01:39.7]} 20... Kxg7 {[%clk
0:02:37.1]} 21. Qg5+ {[%clk 0:01:37.7]} 21... Kh7 {[%clk 0:02:32.9]} 22. Bxf6
{[%clk 0:01:37.2]} 1-0

[Event "*** Titled Tuesday 3|2 Blitz"]
[Site "Chess.com"]
[Date "2015.08.04"]
[Round "5"]
[White "Mugzyyy"]
[Black "Cruel_Yaro"]
[Result "1-0"]
[WhiteElo "2596"]
[BlackElo "2502"]
[TimeControl "180+2"]
[EndTime "12:31:03 PDT"]
[Termination "Mugzyyy won by resignation"]

1. d4 {[%clk 0:03:01.9]} 1... Nf6 {[%clk 0:03:00.4]} 2. c4 {[%clk 0:03:02.7]}
2... c5 {[%clk 0:03:02]} 3. d5 {[%clk 0:03:03.7]} 3... e6 {[%clk 0:03:03.6]} 4.
Nc3 {[%clk 0:03:04.3]} 4... exd5 {[%clk 0:03:05.3]} 5. cxd5 {[%clk 0:03:05.9]}
5... d6 {[%clk 0:03:07]} 6. e4 {[%clk 0:03:07.1]} 6... g6 {[%clk 0:03:08.7]} 7.
f4 {[%clk 0:03:08.5]} 7... Bg7 {[%clk 0:03:09.7]} 8. Bb5+ {[%clk 0:03:09.5]}
8... Nfd7 {[%clk 0:03:10.7]} 9. Nf3 {[%clk 0:03:10]} 9... O-O {[%clk 0:03:12.3]}
10. O-O {[%clk 0:03:11.1]} 10... a6 {[%clk 0:03:13.8]} 11. Bd3 {[%clk
0:03:12.4]} 11... b5 {[%clk 0:03:15.5]} 12. Kh1 {[%clk 0:03:14]} 12... Re8
{[%clk 0:03:13.6]} 13. f5 {[%clk 0:03:14.8]} 13... c4 {[%clk 0:03:14]} 14. Bc2
{[%clk 0:03:15.8]} 14... gxf5 {[%clk 0:03:15.1]} 15. exf5 {[%clk 0:03:16.7]}
15... Nf6 {[%clk 0:03:16.2]} 16. a3 {[%clk 0:03:12.1]} 16... Nbd7 {[%clk
0:03:17]} 17. Nd4 {[%clk 0:03:12.9]} 17... Bb7 {[%clk 0:03:17.8]} 18. Qf3 {[%clk
0:03:10.7]} 18... Ne5 {[%clk 0:03:13.3]} 19. Qg3 {[%clk 0:03:12.1]} 19... Kh8
{[%clk 0:03:14.2]} 20. Bg5 {[%clk 0:03:12.5]} 20... Qb6 {[%clk 0:02:37.2]} 21.
Qh4 {[%clk 0:03:01.9]} 21... Neg4 {[%clk 0:01:32.8]} 22. Ne6 {[%clk 0:03:02.8]}
22... fxe6 {[%clk 0:01:22.5]} 23. fxe6 {[%clk 0:03:03.7]} 23... Rxe6 {[%clk
0:00:45.9]} 24. Bxf6 {[%clk 0:02:55.2]} 1-0

[Event "*** Titled Tuesday 3|2 Blitz"]
[Site "Chess.com"]
[Date "2015.08.04"]
[Round "5"]
[White "proxy6"]
[Black "Krutoy123"]
[Result "0-1"]
[WhiteElo "1915"]
[BlackElo "2118"]
[TimeControl "180+2"]
[EndTime "12:31:49 PDT"]
[Termination "Krutoy123 won by resignation"]

1. e4 {[%clk 0:03:01.9]} 1... g6 {[%clk 0:02:58.4]} 2. d4 {[%clk 0:03:00.9]}
2... Bg7 {[%clk 0:03:00.3]} 3. Nf3 {[%clk 0:02:55.9]} 3... d6 {[%clk 0:03:01.4]}
4. Nbd2 {[%clk 0:02:48.2]} 4... Nd7 {[%clk 0:02:54]} 5. Bd3 {[%clk 0:02:48.8]}
5... c5 {[%clk 0:02:50.8]} 6. c3 {[%clk 0:02:48.1]} 6... cxd4 {[%clk 0:02:50.9]}
7. cxd4 {[%clk 0:02:47]} 7... e6 {[%clk 0:02:49]} 8. O-O {[%clk 0:02:47.2]} 8...
Ne7 {[%clk 0:02:45.9]} 9. Nb3 {[%clk 0:02:44.2]} 9... O-O {[%clk 0:02:46.2]} 10.
Be3 {[%clk 0:02:44.2]} 10... d5 {[%clk 0:02:45.8]} 11. e5 {[%clk 0:02:41.8]}
11... a5 {[%clk 0:02:46.3]} 12. a4 {[%clk 0:02:39.6]} 12... b6 {[%clk
0:02:39.1]} 13. Qd2 {[%clk 0:02:36.7]} 13... Ba6 {[%clk 0:02:35.8]} 14. Bxa6
{[%clk 0:02:33]} 14... Rxa6 {[%clk 0:02:37.7]} 15. Rfc1 {[%clk 0:02:33.1]} 15...
f6 {[%clk 0:02:35.2]} 16. exf6 {[%clk 0:02:27.8]} 16... Bxf6 {[%clk 0:02:37.1]}
17. Bh6 {[%clk 0:02:23]} 17... Re8 {[%clk 0:02:33.9]} 18. Bf4 {[%clk 0:02:17.2]}
18... Nf5 {[%clk 0:02:32]} 19. Bc7 {[%clk 0:02:15.9]} 19... Qa8 {[%clk
0:02:27.3]} 20. Re1 {[%clk 0:02:10.5]} 20... Ra7 {[%clk 0:02:26.7]} 21. Rac1
{[%clk 0:02:10.7]} 21... Rb7 {[%clk 0:02:21.8]} 22. Ng5 {[%clk 0:01:57]} 22...
Nf8 {[%clk 0:02:20]} 23. Be5 {[%clk 0:01:51.6]} 23... Bxe5 {[%clk 0:02:13.6]}
24. Rxe5 {[%clk 0:01:53.5]} 24... Qd8 {[%clk 0:02:13.4]} 25. Rce1 {[%clk
0:01:44.8]} 25... Qd7 {[%clk 0:02:11.7]} 26. Qd3 {[%clk 0:01:27]} 26... h6
{[%clk 0:02:07.8]} 27. Nf3 {[%clk 0:01:25.5]} 27... Qxa4 {[%clk 0:02:08.8]} 28.
Rxd5 {[%clk 0:01:22.5]} 28... exd5 {[%clk 0:02:09.4]} 0-1

[Event "*** Titled Tuesday 3|2 Blitz"]
[Site "Chess.com"]
[Date "2015.08.04"]
[Round "5"]
[White "FairChess_on_YouTube"]
[Black "hansen"]
[Result "1-0"]
[WhiteElo "2729"]
[BlackElo "2486"]
[TimeControl "180+2"]
[EndTime "12:33:08 PDT"]
[Termination "FairChess_on_YouTube won by resignation"]

1. e4 {[%clk 0:03:01.9]} 1... c5 {[%clk 0:02:51.8]} 2. Ne2 {[%clk 0:03:01.5]}
2... Nc6 {[%clk 0:02:49.1]} 3. Nbc3 {[%clk 0:03:00.7]} 3... e6 {[%clk
0:02:48.3]} 4. g3 {[%clk 0:03:00.6]} 4... a6 {[%clk 0:02:33.9]} 5. Bg2 {[%clk
0:03:00.8]} 5... Qc7 {[%clk 0:02:35.4]} 6. O-O {[%clk 0:02:59.7]} 6... Nf6
{[%clk 0:02:36.1]} 7. d3 {[%clk 0:02:53.7]} 7... Be7 {[%clk 0:02:10.8]} 8. Kh1
{[%clk 0:02:53.1]} 8... d6 {[%clk 0:02:09.4]} 9. h3 {[%clk 0:02:53.4]} 9... b5
{[%clk 0:02:05.8]} 10. Be3 {[%clk 0:02:51.2]} 10... Bb7 {[%clk 0:02:06.9]} 11.
f4 {[%clk 0:02:50.8]} 11... Rd8 {[%clk 0:02:01.5]} 12. g4 {[%clk 0:02:49.5]}
12... d5 {[%clk 0:01:59.7]} 13. exd5 {[%clk 0:02:48.3]} 13... Nxd5 {[%clk
0:01:57]} 14. Nxd5 {[%clk 0:02:47.3]} 14... exd5 {[%clk 0:01:58.9]} 15. Ng3
{[%clk 0:02:44.7]} 15... O-O {[%clk 0:01:50.6]} 16. g5 {[%clk 0:02:45.5]} 16...
Bxg5 {[%clk 0:01:44.3]} 17. fxg5 {[%clk 0:02:36]} 17... Qxg3 {[%clk 0:01:45.5]}
18. Bxc5 {[%clk 0:02:35]} 18... Rfe8 {[%clk 0:01:43.8]} 19. Qf3 {[%clk
0:02:25.7]} 19... Qxf3 {[%clk 0:01:39.6]} 20. Rxf3 {[%clk 0:02:23.9]} 20... d4
{[%clk 0:01:21.1]} 21. Rf4 {[%clk 0:02:16.8]} 21... Re5 {[%clk 0:01:17.8]} 22.
b4 {[%clk 0:02:15.6]} 22... Rxg5 {[%clk 0:01:17.4]} 23. Be4 {[%clk 0:01:53.1]}
23... Rd7 {[%clk 0:00:56.3]} 24. Kh2 {[%clk 0:01:48.1]} 24... g6 {[%clk
0:00:45.4]} 25. Re1 {[%clk 0:01:44.7]} 25... Kg7 {[%clk 0:00:31.6]} 26. h4
{[%clk 0:01:43.3]} 26... Rxc5 {[%clk 0:00:12.8]} 27. bxc5 {[%clk 0:01:43.5]}
27... f5 {[%clk 0:00:12.2]} 28. Bxc6 {[%clk 0:01:42.4]} 28... Bxc6 {[%clk
0:00:14.1]} 29. Re6 {[%clk 0:01:43.6]} 1-0

[Event "*** Titled Tuesday 3|2 Blitz"]
[Site "Chess.com"]
[Date "2015.08.04"]
[Round "5"]
[White "AnthonyWirig"]
[Black "1stSecond"]
[Result "0-1"]
[WhiteElo "2498"]
[BlackElo "2370"]
[TimeControl "180+2"]
[EndTime "12:33:08 PDT"]
[Termination "1stSecond won by resignation"]

1. e4 {[%clk 0:03:01.9]} 1... e5 {[%clk 0:03:01.5]} 2. Nf3 {[%clk 0:03:03.1]}
2... Nc6 {[%clk 0:03:02.9]} 3. Bb5 {[%clk 0:03:04]} 3... a6 {[%clk 0:03:03.7]}
4. Ba4 {[%clk 0:03:05.2]} 4... Nge7 {[%clk 0:03:04.4]} 5. O-O {[%clk 0:03:04.9]}
5... g6 {[%clk 0:03:05.4]} 6. c3 {[%clk 0:03:05.5]} 6... Bg7 {[%clk 0:03:06.5]}
7. d4 {[%clk 0:03:06.8]} 7... exd4 {[%clk 0:03:07.9]} 8. cxd4 {[%clk 0:03:08.7]}
8... b5 {[%clk 0:03:09.2]} 9. Bb3 {[%clk 0:03:07.8]} 9... O-O {[%clk 0:03:09.4]}
10. Nc3 {[%clk 0:03:06.2]} 10... Na5 {[%clk 0:03:10.4]} 11. Bg5 {[%clk 0:03:05]}
11... h6 {[%clk 0:03:06.8]} 12. Bh4 {[%clk 0:02:59.9]} 12... Nxb3 {[%clk
0:03:04]} 13. axb3 {[%clk 0:02:56]} 13... Bb7 {[%clk 0:03:02.2]} 14. d5 {[%clk
0:02:51.7]} 14... g5 {[%clk 0:02:55.8]} 15. Bg3 {[%clk 0:02:53]} 15... f5 {[%clk
0:02:57.2]} 16. Be5 {[%clk 0:02:31.4]} 16... fxe4 {[%clk 0:02:48.1]} 17. Bxg7
{[%clk 0:02:32]} 17... Kxg7 {[%clk 0:02:49.4]} 18. Qd4+ {[%clk 0:02:31]} 18...
Kg8 {[%clk 0:02:39.3]} 19. Qxe4 {[%clk 0:02:25.8]} 19... Nf5 {[%clk 0:02:34.6]}
20. Ne5 {[%clk 0:02:09.8]} 20... Qe7 {[%clk 0:02:31.9]} 21. Rae1 {[%clk
0:01:22.9]} 21... Rae8 {[%clk 0:02:32.8]} 22. Qg4 {[%clk 0:01:14.1]} 22... Qg7
{[%clk 0:02:27.9]} 23. f4 {[%clk 0:01:07.4]} 23... b4 {[%clk 0:02:25.1]} 24. Na4
{[%clk 0:00:48.7]} 24... Bxd5 {[%clk 0:02:26]} 25. h4 {[%clk 0:00:26.9]} 25...
d6 {[%clk 0:02:22.8]} 26. fxg5 {[%clk 0:00:20.3]} 26... Rxe5 {[%clk 0:02:22.6]}
27. Rxe5 {[%clk 0:00:18.9]} 27... Qxe5 {[%clk 0:02:24.5]} 28. gxh6+ {[%clk
0:00:20.3]} 28... Kh7 {[%clk 0:02:24.8]} 29. h5 {[%clk 0:00:16.7]} 29... Rf6
{[%clk 0:01:58.2]} 30. Rxf5 {[%clk 0:00:05]} 30... Rxf5 {[%clk 0:01:59.6]} 31.
Qg7+ {[%clk 0:00:06.3]} 0-1

[Event "*** Titled Tuesday 3|2 Blitz"]
[Site "Chess.com"]
[Date "2015.08.04"]
[Round "5"]
[White "Tal-Baronfew"]
[Black "Zlatan56"]
[Result "1-0"]
[WhiteElo "2750"]
[BlackElo "2453"]
[TimeControl "180+2"]
[EndTime "12:33:33 PDT"]
[Termination "Tal-Baronfew won by resignation"]

1. d4 {[%clk 0:03:01.9]} 1... Nf6 {[%clk 0:03:00]} 2. c4 {[%clk 0:03:02.7]} 2...
g6 {[%clk 0:03:00.9]} 3. Nc3 {[%clk 0:03:03.8]} 3... Bg7 {[%clk 0:03:02.4]} 4.
Nf3 {[%clk 0:03:04.7]} 4... O-O {[%clk 0:03:02.8]} 5. e4 {[%clk 0:03:06.2]} 5...
d6 {[%clk 0:03:03.4]} 6. h3 {[%clk 0:03:07.2]} 6... Na6 {[%clk 0:03:03.8]} 7.
Be3 {[%clk 0:03:07.1]} 7... Qe8 {[%clk 0:03:05.3]} 8. Be2 {[%clk 0:02:48.8]}
8... e5 {[%clk 0:03:05.1]} 9. d5 {[%clk 0:02:47.4]} 9... Nd7 {[%clk 0:03:05.5]}
10. a3 {[%clk 0:02:41.1]} 10... f5 {[%clk 0:03:03.5]} 11. b4 {[%clk 0:02:42.5]}
11... Nf6 {[%clk 0:03:02]} 12. Rc1 {[%clk 0:02:33.5]} 12... Bd7 {[%clk 0:02:44]}
13. Qb3 {[%clk 0:02:30]} 13... Kh8 {[%clk 0:02:39.7]} 14. c5 {[%clk 0:02:31.2]}
14... f4 {[%clk 0:02:13.9]} 15. Bd2 {[%clk 0:02:32.4]} 15... dxc5 {[%clk
0:02:14.6]} 16. Bxa6 {[%clk 0:02:28.3]} 16... bxa6 {[%clk 0:02:15.5]} 17. bxc5
{[%clk 0:02:27.9]} 17... Rb8 {[%clk 0:02:16.9]} 18. Qc4 {[%clk 0:02:28.7]} 18...
Bb5 {[%clk 0:02:15.6]} 19. Nxb5 {[%clk 0:02:29.1]} 19... Qxb5 {[%clk 0:02:14.7]}
20. O-O {[%clk 0:02:25.7]} 20... Nd7 {[%clk 0:02:02.4]} 21. Rfd1 {[%clk
0:02:13.4]} 21... Bf6 {[%clk 0:01:59.1]} 22. Qxb5 {[%clk 0:02:03.8]} 22... Rxb5
{[%clk 0:01:55]} 23. a4 {[%clk 0:01:57.3]} 23... Rb3 {[%clk 0:01:43.4]} 24. Ba5
{[%clk 0:01:57.6]} 24... Rc8 {[%clk 0:01:35.7]} 25. Nd2 {[%clk 0:01:53.2]} 25...
Ra3 {[%clk 0:01:33.1]} 26. Rc4 {[%clk 0:01:46.1]} 26... Be7 {[%clk 0:01:29]} 27.
d6 {[%clk 0:01:40.4]} 27... Bd8 {[%clk 0:01:13.9]} 28. c6 {[%clk 0:01:41.3]}
28... Nb6 {[%clk 0:01:14.6]} 29. d7 {[%clk 0:01:42.2]} 29... Rb8 {[%clk
0:01:13.7]} 30. Rc5 {[%clk 0:01:37.5]} 30... Bf6 {[%clk 0:01:09.3]} 31. Bc3
{[%clk 0:01:35.4]} 31... Nxa4 {[%clk 0:00:50.5]} 32. Bxe5 {[%clk 0:01:35.2]}
32... Kg7 {[%clk 0:00:51]} 33. Ra5 {[%clk 0:01:30.8]} 33... Rd8 {[%clk
0:00:30.5]} 34. Nc4 {[%clk 0:01:28.8]} 34... Ra2 {[%clk 0:00:28.9]} 35. Bxc7
{[%clk 0:01:26.9]} 1-0

[Event "*** Titled Tuesday 3|2 Blitz"]
[Site "Chess.com"]
[Date "2015.08.04"]
[Round "5"]
[White "Fawolizzo"]
[Black "Gergo85"]
[Result "0-1"]
[WhiteElo "1896"]
[BlackElo "2320"]
[TimeControl "180+2"]
[EndTime "12:33:41 PDT"]
[Termination "Gergo85 won on time"]

1. d4 {[%clk 0:03:01.9]} 1... g6 {[%clk 0:02:56.9]} 2. c4 {[%clk 0:03:01.2]}
2... Bg7 {[%clk 0:02:57.5]} 3. Nf3 {[%clk 0:03:02.2]} 3... c5 {[%clk 0:02:58.2]}
4. g3 {[%clk 0:03:02.5]} 4... cxd4 {[%clk 0:02:58.7]} 5. Nxd4 {[%clk 0:03:03.5]}
5... Nc6 {[%clk 0:02:59.7]} 6. Nxc6 {[%clk 0:03:03.3]} 6... bxc6 {[%clk
0:02:58.8]} 7. Bg2 {[%clk 0:03:04]} 7... Nf6 {[%clk 0:03:00.2]} 8. O-O {[%clk
0:03:03]} 8... O-O {[%clk 0:02:46.2]} 9. Nc3 {[%clk 0:03:03.3]} 9... Rb8 {[%clk
0:02:46.6]} 10. Qa4 {[%clk 0:02:54.4]} 10... Qb6 {[%clk 0:02:44.8]} 11. Bf4
{[%clk 0:02:40.8]} 11... d6 {[%clk 0:02:35.4]} 12. Bxc6 {[%clk 0:02:19.4]} 12...
Bh3 {[%clk 0:02:32.1]} 13. Rfb1 {[%clk 0:02:13.6]} 13... Ng4 {[%clk 0:02:32.4]}
14. c5 {[%clk 0:01:43]} 14... Qxc5 {[%clk 0:02:16.2]} 15. Ne4 {[%clk 0:01:43]}
15... Qd4 {[%clk 0:01:56.6]} 16. Qxd4 {[%clk 0:01:25.4]} 16... Bxd4 {[%clk
0:01:56.6]} 17. e3 {[%clk 0:01:25.4]} 17... Bxb2 {[%clk 0:01:56.4]} 18. Ng5
{[%clk 0:01:21.1]} 18... Bxa1 {[%clk 0:01:39.1]} 19. Rxa1 {[%clk 0:01:20.9]}
19... e5 {[%clk 0:01:39.4]} 20. Nxh3 {[%clk 0:01:21.8]} 20... exf4 {[%clk
0:01:40.5]} 21. Nxf4 {[%clk 0:01:20.1]} 21... Rb2 {[%clk 0:01:41.3]} 22. Nd3
{[%clk 0:01:12]} 22... Rd2 {[%clk 0:01:42.3]} 23. Bb5 {[%clk 0:00:51.2]} 23...
Rb8 {[%clk 0:01:42.5]} 24. Bc4 {[%clk 0:00:49.4]} 24... d5 {[%clk 0:01:37.4]}
25. Ba6 {[%clk 0:00:41.5]} 25... Rb6 {[%clk 0:01:38.5]} 26. Nc5 {[%clk
0:00:33.4]} 26... Nxf2 {[%clk 0:01:37.4]} 27. Bf1 {[%clk 0:00:31]} 27... Ng4
{[%clk 0:01:33.7]} 28. e4 {[%clk 0:00:28.7]} 28... Nxh2 {[%clk 0:01:17.8]} 29.
exd5 {[%clk 0:00:23.4]} 29... Nf3+ {[%clk 0:01:18.1]} 0-1

[Event "*** Titled Tuesday 3|2 Blitz"]
[Site "Chess.com"]
[Date "2015.08.04"]
[Round "5"]
[White "Haykos"]
[Black "jefferyx"]
[Result "1/2-1/2"]
[WhiteElo "2184"]
[BlackElo "2409"]
[TimeControl "180+2"]
[EndTime "12:34:00 PDT"]
[Termination "Game drawn by agreement"]

1. e4 {[%clk 0:03:01.9]} 1... a6 {[%clk 0:03:00.9]} 2. Nc3 {[%clk 0:03:00.3]}
2... b5 {[%clk 0:03:02.3]} 3. a3 {[%clk 0:03:01.4]} 3... Bb7 {[%clk 0:03:03.6]}
4. g3 {[%clk 0:03:01.9]} 4... e6 {[%clk 0:03:03.6]} 5. Bg2 {[%clk 0:03:03.4]}
5... Bc5 {[%clk 0:03:04.3]} 6. Nge2 {[%clk 0:03:04.3]} 6... Ne7 {[%clk
0:03:05.2]} 7. O-O {[%clk 0:03:05.5]} 7... O-O {[%clk 0:03:05.7]} 8. d4 {[%clk
0:03:02.8]} 8... Bb6 {[%clk 0:03:06.7]} 9. d5 {[%clk 0:03:01.9]} 9... exd5
{[%clk 0:02:59.9]} 10. exd5 {[%clk 0:03:01.8]} 10... d6 {[%clk 0:03:01.1]} 11.
Nd4 {[%clk 0:03:01.3]} 11... Nd7 {[%clk 0:02:59]} 12. Re1 {[%clk 0:03:02.5]}
12... h6 {[%clk 0:02:56.9]} 13. Be3 {[%clk 0:03:01.2]} 13... Nf6 {[%clk
0:02:52.9]} 14. Nc6 {[%clk 0:02:19.9]} 14... Bxc6 {[%clk 0:02:54.3]} 15. Bxb6
{[%clk 0:02:20.7]} 15... Nexd5 {[%clk 0:02:50.5]} 16. Nxd5 {[%clk 0:02:20.3]}
16... Bxd5 {[%clk 0:02:46.6]} 17. Bxd5 {[%clk 0:02:01.9]} 17... Nxd5 {[%clk
0:02:48.5]} 18. Qxd5 {[%clk 0:02:02.6]} 18... cxb6 {[%clk 0:02:50]} 19. Rad1
{[%clk 0:02:04.3]} 19... Qf6 {[%clk 0:02:46]} 20. c3 {[%clk 0:01:57.7]} 20...
Rfd8 {[%clk 0:02:15.6]} 21. Qb7 {[%clk 0:01:57]} 21... Rdb8 {[%clk 0:02:10.6]}
22. Qc7 {[%clk 0:01:51.3]} 22... Re8 {[%clk 0:02:10.9]} 23. Qxb6 {[%clk
0:01:48.9]} 23... h5 {[%clk 0:01:52.3]} 24. Rxe8+ {[%clk 0:01:34.4]} 24... Rxe8
{[%clk 0:01:52.6]} 25. Qxd6 {[%clk 0:01:35.6]} 25... Qf3 {[%clk 0:01:54.1]} 26.
Qd4 {[%clk 0:01:30]} 26... h4 {[%clk 0:01:51.4]} 27. gxh4 {[%clk 0:01:13.5]}
27... Re6 {[%clk 0:01:35.9]} 28. Qd8+ {[%clk 0:01:09]} 28... Kh7 {[%clk
0:01:36.9]} 29. Qd3+ {[%clk 0:01:09.9]} 29... Rg6+ {[%clk 0:01:38.2]} 30. Kf1
{[%clk 0:01:09.3]} 30... Qg4 {[%clk 0:01:20.7]} 31. Re1 {[%clk 0:01:00.4]} 31...
f5 {[%clk 0:01:15.4]} 32. Re5 {[%clk 0:00:47.6]} 32... Rf6 {[%clk 0:00:45.4]}
1/2-1/2